bitfinex-derivatives/quotes_ETHF0:USTF0_20260119
["timestamp","ask_amount","ask_price","bid_price","bid_amount"]
[1768799678218,2.24375519,3206.4,3204.0,3.32739204]
[1768799678423,0.99924938,3206.3,3204.0,3.32739204]
[1768799678618,2.24375519,3206.4,3204.0,3.32739204]
[1768799678921,0.9992482,3206.3,3204.0,3.32739204]
[1768799679120,2.24375519,3206.4,3204.0,3.32739204]
[1768799680926,2.24375519,3206.9,3204.1,3.55224656]
[1768799681120,0.99909018,3206.8,3204.1,3.70837656]
[1768799681320,0.99909018,3206.7,3204.1,3.70837656]
[1768799681619,3.75484647,3207.0,3204.3,3.70836656]
[1768799681821,0.99914371,3206.9,3204.5,3.55224656]
[1768799682022,0.00365462,3207.1,3204.5,3.55224656]
[1768799682224,0.99917136,3207.0,3204.5,3.55224656]
[1768799682425,0.99917136,3206.9,3204.5,3.55224656]
[1768799682726,0.00365462,3207.1,3204.7,3.70834656]
[1768799682925,0.00365462,3207.1,3204.9,3.55224656]
[1768799683116,0.00365462,3207.1,3205.1,3.55224656]
[1768799683622,0.00365462,3207.1,3205.8,0.00467792]
[1768799684420,7.15427543,3207.0,3203.0,0.0008]
[1768799684618,3.75484647,3205.3,3203.0,0.0008]
[1768799685127,3.75484647,3205.1,3203.0,0.0008]
[1768799685824,3.75484647,3205.1,3203.4,1.46074783]
[1768799686228,5.99860166,3204.9,3203.4,1.46074783]
[1768799686523,2.24375519,3204.4,3201.9,3.55224656]
[1768799687622,2.24647324,3204.4,3201.9,3.55573803]
[1768799689620,0.00271805,3204.4,3202.3,3.55224656]
[1768799692223,0.00271805,3204.4,3202.3,3.70846656]
[1768799692424,0.00271805,3204.4,3202.5,3.55224656]
[1768799692624,0.00271805,3204.4,3202.7,3.48664449]
[1768799692834,0.00271805,3204.4,3202.9,3.48664449]
[1768799694433,0.00271805,3204.4,3202.9,8.40964449]
[1768799694639,0.00271805,3204.4,3203.0,3.48664449]
[1768799697737,2.24375519,3205.4,3203.0,3.48664449]
[1768799697925,1.00775327,3205.3,3203.0,3.48664449]
[1768799698232,1.00775327,3205.2,3203.0,3.48664449]
[1768799698434,1.00775327,3205.1,3203.0,3.48664449]
[1768799698621,2.24375519,3205.4,3203.0,3.48664449]
[1768799698822,0.00341486,3205.1,3203.0,3.48664449]
[1768799699221,0.00341486,3205.1,3203.0,3.64282449]
[1768799699425,0.00341486,3205.1,3203.2,3.48664449]
[1768799699626,0.00341486,3205.1,3203.6,3.48664449]
[1768799700130,0.00341486,3205.1,3203.6,3.64279449]
[1768799700329,4.59038146,3206.3,3203.8,3.48664449]
[1768799700531,1.00940077,3206.2,3203.8,3.48664449]
[1768799700736,1.00940077,3206.1,3203.8,3.48664449]
[1768799700941,1.00940077,3206.0,3203.8,3.48664449]
[1768799701243,1.00940077,3205.9,3203.8,3.48664449]
[1768799702633,1.00940077,3205.9,3203.8,3.64278449]
[1768799703635,2.24375519,3205.3,3203.3,3.48664449]
[1768799703840,1.00940077,3205.2,3203.3,5.28864449]
[1768799704140,1.00940077,3205.1,3203.4,3.48664449]
[1768799704437,2.24375519,3205.3,3203.4,3.48664449]
[1768799704635,1.00916064,3205.2,3203.4,3.48664449]
[1768799704836,1.00916064,3205.1,3203.4,3.48664449]
[1768799705036,2.24375519,3205.3,3203.4,3.48664449]
[1768799705333,1.00915976,3205.2,3203.4,3.48664449]
[1768799705530,1.00915976,3205.1,3203.4,3.48664449]
[1768799705732,2.24375519,3205.3,3203.4,3.48664449]
[1768799706035,1.00915838,3205.2,3203.4,3.48664449]
[1768799706236,1.00915838,3205.1,3203.4,3.48664449]
[1768799706430,3.47304475,3205.2,3203.0,0.15618]
[1768799706632,2.24375519,3203.2,3201.9,3.49013596]
[1768799706837,2.24721185,3203.2,3201.9,0.00349147]
[1768799707539,0.00345666,3203.2,3201.9,0.00349147]
[1768799720249,0.00467792,3202.9,3201.9,0.00349147]
[1768799722043,0.00467792,3202.9,3201.9,3.49013596]
[1768799723141,0.00467792,3202.9,3201.9,5.29213596]
[1768799724444,0.00467792,3202.9,3202.0,3.33133443]
[1768799728646,0.00467792,3202.9,3202.1,1.802]
[1768799730362,0.00467792,3202.9,3201.9,0.00349147]
[1768799730555,0.00467792,3202.9,3202.0,1.802]
[1768799732854,0.00467792,3202.9,3201.9,0.00349147]
[1768799733061,0.00467792,3202.9,3202.0,1.802]
[1768799736248,1.01892711,3202.8,3202.0,1.802]
[1768799736452,1.01892711,3202.7,3202.0,1.802]
[1768799736652,0.00467792,3202.9,3202.0,1.802]
[1768799736852,1.01892747,3202.8,3202.0,1.802]
[1768799737059,1.01892747,3202.7,3202.0,1.802]
[1768799737255,0.00467792,3202.9,3202.0,1.802]
[1768799737454,1.01890184,3202.8,3202.0,1.802]
[1768799737654,1.01890184,3202.7,3202.0,1.802]
[1768799737854,0.00467792,3202.9,3201.9,0.00349147]
[1768799738058,1.01881379,3202.8,3202.0,1.802]
[1768799738254,1.01881379,3202.7,3202.0,1.802]
[1768799738456,0.00467792,3202.9,3202.0,1.802]
[1768799738654,1.01879402,3202.8,3202.0,1.802]
[1768799738953,1.01879402,3202.7,3202.0,1.802]
[1768799739148,0.00467792,3202.9,3202.0,1.802]
[1768799739350,1.01877311,3202.8,3201.9,1.80549147]
[1768799739657,1.01877311,3202.7,3201.9,1.80549147]
[1768799739857,0.00467792,3202.9,3201.9,1.80549147]
[1768799740058,1.01876829,3202.8,3201.9,1.80549147]
[1768799740262,1.01876829,3202.7,3201.9,1.80549147]
[1768799740464,0.00467792,3202.9,3201.9,1.80549147]
[1768799740763,1.01875338,3202.8,3201.9,1.80549147]
[1768799741067,1.01875338,3202.7,3201.9,1.80549147]
[1768799741265,0.00467792,3202.9,3201.9,1.80549147]
[1768799741462,1.01876582,3202.8,3201.9,1.80549147]
[1768799741660,1.01876582,3202.7,3201.9,1.80549147]
[1768799741863,0.00467792,3202.9,3201.9,1.80549147]
[1768799742062,1.01876675,3202.8,3201.9,1.80549147]
[1768799742261,1.01876675,3202.7,3201.9,1.80549147]
[1768799742460,0.00467792,3202.9,3201.9,1.80549147]
[1768799742662,1.01874476,3202.8,3201.9,1.80549147]
[1768799742858,1.01874476,3202.7,3201.9,1.80549147]
[1768799743058,0.00467792,3202.9,3201.9,1.80549147]
[1768799743264,1.01874449,3202.8,3201.9,5.08907083]
[1768799743468,0.00467792,3202.9,3201.9,5.08807083]
[1768799743664,1.01872399,3202.8,3201.9,5.08807083]
[1768799743863,0.00467792,3202.9,3201.9,5.08807083]
[1768799744164,1.01872249,3202.8,3201.9,5.08807083]
[1768799744366,0.00467792,3202.9,3201.9,5.08807083]
[1768799744565,1.01870401,3202.8,3202.0,3.28357936]
[1768799744765,0.00467792,3202.9,3202.0,3.28357936]
[1768799744966,1.01870934,3202.8,3202.0,3.28357936]
[1768799745161,0.00467792,3202.9,3202.0,3.28357936]
[1768799745362,1.01868831,3202.8,3202.0,3.28357936]
[1768799745562,0.00467792,3202.9,3202.0,3.28357936]
[1768799745868,1.0186881,3202.8,3202.0,3.28357936]
[1768799746070,0.00467792,3202.9,3202.0,3.28357936]
[1768799746268,1.01868818,3202.8,3202.0,3.28357936]
[1768799746468,0.00467792,3202.9,3202.0,3.28357936]
[1768799746668,1.01867116,3202.8,3202.0,3.28357936]
[1768799746970,0.00467792,3202.9,3202.0,3.28357936]
[1768799747161,1.01867005,3202.8,3202.0,3.28357936]
[1768799747366,0.00467792,3202.9,3202.0,3.28357936]
[1768799747562,1.01863872,3202.8,3202.0,3.28357936]
[1768799747762,0.00467792,3202.9,3202.0,3.28357936]
[1768799747971,1.01863592,3202.8,3202.0,3.28357936]
[1768799748174,0.00467792,3202.9,3202.0,3.28357936]
[1768799748370,1.01865577,3202.8,3202.0,3.28357936]
[1768799748671,0.00467792,3202.9,3202.0,3.28357936]
[1768799748871,1.01865671,3202.8,3202.0,3.28357936]
[1768799749071,1.01865671,3202.7,3202.0,3.28357936]
[1768799749274,0.00467792,3202.9,3202.0,3.28357936]
[1768799749475,1.01785079,3202.8,3202.0,3.28357936]
[1768799749669,0.00467792,3202.9,3202.0,3.28357936]
[1768799749870,1.01784847,3202.8,3202.0,3.28357936]
[1768799750071,0.00467792,3202.9,3202.0,3.28357936]
[1768799750262,1.01784395,3202.8,3202.0,3.28357936]
[1768799750466,0.00467792,3202.9,3202.0,3.28357936]
[1768799750665,1.01782554,3202.8,3202.0,3.28357936]
[1768799750868,0.00467792,3202.9,3202.0,3.28357936]
[1768799751067,1.01782553,3202.8,3202.0,3.28357936]
[1768799751278,0.00467792,3202.9,3202.0,3.28357936]
[1768799751575,1.01782309,3202.8,3201.9,1.80449147]
[1768799751775,1.01782309,3202.7,3201.9,1.80449147]
[1768799751976,0.00467792,3202.9,3201.9,1.80449147]
[1768799752170,1.01787186,3202.8,3201.9,1.80449147]
[1768799752370,1.01787186,3202.7,3201.9,1.80449147]
[1768799752573,0.00467792,3202.9,3201.9,1.80449147]
[1768799752775,1.01784524,3202.8,3201.9,1.80449147]
[1768799752976,1.01784524,3202.7,3201.9,0.00349147]
[1768799753279,0.00467792,3202.9,3201.9,0.00349147]
[1768799753576,1.01802234,3202.8,3201.9,0.00349147]
[1768799753875,1.01802234,3202.7,3201.9,0.00349147]
[1768799754077,1.01802234,3202.6,3201.9,0.00349147]
[1768799754401,0.00467792,3202.9,3201.9,0.00349147]
[1768799754578,1.0179463,3202.8,3201.9,0.00349147]
[1768799754776,1.0179463,3202.7,3200.8,3.66587193]
[1768799754980,2.13528301,3202.6,3200.8,3.66587193]
[1768799755168,2.13528301,3202.5,3200.9,3.50958193]
[1768799755474,1.0179463,3202.4,3200.9,3.50958193]
[1768799755669,1.0179463,3202.3,3200.9,3.50958193]
[1768799755871,1.0179463,3202.2,3200.9,3.51301404]
[1768799756075,1.0179463,3202.1,3200.9,3.51301404]
[1768799756275,1.11733671,3202.5,3200.9,3.51301404]
[1768799756576,1.01682941,3202.4,3200.9,3.51301404]
[1768799756773,1.01682941,3202.3,3200.9,3.51301404]
[1768799756973,1.01682941,3202.2,3200.9,3.51301404]
[1768799757174,1.01682941,3202.1,3200.9,0.00343211]
[1768799757377,1.01682941,3202.0,3200.9,0.00343211]
[1768799757673,1.11733671,3202.4,3200.9,0.00343211]
[1768799757879,1.01646953,3202.3,3200.9,0.00343211]
[1768799758179,1.01646953,3202.2,3200.9,0.00343211]
[1768799758377,1.01646953,3202.1,3200.9,0.00343211]
[1768799758578,1.01646953,3202.0,3200.9,0.00343211]
[1768799758782,1.11733671,3202.4,3200.9,0.00343211]
[1768799758982,1.01613725,3202.3,3200.9,0.00343211]
[1768799759178,1.01613725,3202.2,3200.9,3.51301404]
[1768799759479,1.01613725,3202.1,3200.9,0.00343211]
[1768799759682,1.01613725,3202.0,3200.9,0.00343211]
[1768799759872,1.01613725,3201.9,3200.9,0.00343211]
[1768799760073,1.11733671,3202.4,3200.9,0.00343211]
[1768799760275,1.01582123,3202.3,3200.9,0.00343211]
[1768799760477,1.01582123,3202.2,3200.9,3.51301404]
[1768799760778,1.11733671,3202.8,3200.9,3.51301404]
[1768799760984,1.01612437,3202.7,3201.1,3.50958193]
[1768799761178,1.01612437,3202.6,3201.1,3.50958193]
[1768799761377,1.01612437,3202.5,3201.1,3.50958193]
[1768799761680,0.00467792,3202.9,3201.1,3.50958193]
[1768799761982,1.0160818,3202.8,3201.1,3.50958193]
[1768799762185,1.0160818,3202.7,3201.1,3.50958193]
[1768799762384,0.00467792,3202.9,3201.1,3.50958193]
[1768799762583,1.01601654,3202.8,3201.1,3.50958193]
[1768799762785,0.00467792,3202.9,3201.1,3.50958193]
[1768799763275,0.00467792,3202.9,3201.3,3.50958193]
[1768799763882,0.00467792,3202.9,3201.5,3.50958193]
[1768799764788,1.01595097,3202.8,3201.5,5.10358193]
[1768799764986,0.00467792,3202.9,3201.5,5.10358193]
[1768799765187,1.01595116,3202.8,3201.5,5.10358193]
[1768799765382,1.01595116,3202.7,3201.5,3.50958193]
[1768799765575,0.00467792,3202.9,3201.5,3.50958193]
[1768799765778,1.01595963,3202.8,3201.5,3.50958193]
[1768799765978,1.01595963,3202.7,3201.5,3.50958193]
[1768799766178,0.00467792,3202.9,3201.5,3.50958193]
[1768799766386,1.01597474,3202.8,3201.5,3.50958193]
[1768799766587,1.01597474,3202.7,3201.5,3.50958193]
[1768799766789,0.00467792,3202.9,3201.5,3.50958193]
[1768799766992,1.01597516,3202.8,3201.5,5.31058193]
[1768799767181,1.01597516,3202.7,3201.5,5.31058193]
[1768799767489,0.00467792,3202.9,3201.5,5.31058193]
[1768799767687,1.01600231,3202.8,3201.5,5.31058193]
[1768799767890,1.01600231,3202.7,3201.5,3.50958193]
[1768799768088,0.00467792,3202.9,3201.5,5.31058193]
[1768799768292,1.01606383,3202.8,3201.5,5.31058193]
[1768799768491,1.01606383,3202.7,3201.5,5.31058193]
[1768799768687,0.00467792,3202.9,3201.5,5.31058193]
[1768799768879,1.01606358,3202.8,3201.6,3.50958193]
[1768799769087,0.00467792,3202.9,3201.6,3.50958193]
[1768799769286,1.01610085,3202.8,3201.6,3.50958193]
[1768799769486,0.00467792,3202.9,3201.6,3.50958193]
[1768799769992,0.00467792,3202.9,3201.8,3.50958193]
[1768799771488,0.00467792,3202.9,3202.0,3.50958193]
[1768799772390,0.00467792,3202.9,3202.1,1.801]
[1768799772595,0.00467792,3202.9,3202.1,5.31058193]
[1768799772893,0.00467792,3202.9,3202.1,3.50958193]
[1768799773092,0.00467792,3202.9,3202.1,5.31058193]
[1768799774091,0.00467792,3202.9,3202.1,3.50958193]
[1768799774297,0.00467792,3202.9,3202.1,5.31058193]
[1768799774986,0.00467792,3202.9,3202.1,3.50958193]
[1768799775186,0.00467792,3202.9,3202.1,5.31058193]
[1768799777200,0.00467792,3202.9,3201.3,3.50958193]
[1768799777399,0.00467792,3202.9,3201.6,3.50958193]
[1768799777598,1.01647151,3202.8,3201.6,3.50958193]
[1768799777893,0.00467792,3202.9,3201.6,3.50958193]
[1768799778089,1.01645788,3202.8,3201.6,3.50958193]
[1768799778291,0.00467792,3202.9,3201.6,3.50958193]
[1768799778490,1.01651251,3202.8,3201.8,3.50958193]
[1768799778688,0.00467792,3202.9,3201.8,3.50958193]
[1768799778888,1.01651081,3202.8,3201.8,3.50958193]
[1768799779088,0.00467792,3202.9,3201.8,3.50958193]
[1768799779385,1.01651354,3202.8,3201.8,3.50958193]
[1768799779587,0.00467792,3202.9,3201.8,3.50958193]
[1768799779788,1.0171008,3202.8,3201.8,3.50958193]
[1768799779989,0.00467792,3202.9,3201.8,3.50958193]
[1768799780188,1.01709669,3202.8,3201.8,3.50958193]
[1768799780390,0.00467792,3202.9,3201.8,3.50958193]
[1768799780595,1.01715252,3202.8,3201.8,3.50958193]
[1768799780794,0.00467792,3202.9,3201.8,3.50958193]
[1768799781000,1.0171531,3202.8,3201.8,3.50958193]
[1768799781297,0.00467792,3202.9,3201.8,3.50958193]
[1768799781499,1.01721294,3202.8,3201.8,3.50958193]
[1768799781801,0.00467792,3202.9,3201.8,3.50958193]
[1768799782100,1.01721341,3202.8,3201.8,3.50958193]
[1768799782291,0.00467792,3202.9,3201.8,3.50958193]
[1768799782492,1.01712979,3202.8,3201.8,3.50958193]
[1768799782689,0.00467792,3202.9,3201.8,3.50958193]
[1768799785394,1.01699139,3202.8,3201.8,3.50958193]
[1768799785595,0.00467792,3202.9,3201.8,3.50958193]
[1768799786292,1.01714426,3202.8,3201.8,3.50958193]
[1768799786492,0.00467792,3202.9,3201.8,3.50958193]
[1768799786694,1.01714185,3202.8,3201.8,3.50958193]
[1768799786895,0.00467792,3202.9,3201.8,3.50958193]
[1768799787094,1.01714396,3202.8,3201.8,3.50958193]
[1768799787297,0.00467792,3202.9,3201.8,3.50958193]
[1768799787593,1.0173353,3202.8,3201.8,3.50958193]
[1768799787794,0.00467792,3202.9,3201.8,3.50958193]
[1768799788000,1.01720869,3202.8,3201.9,1.8]
[1768799788192,0.00467792,3202.9,3201.9,1.8]
[1768799788391,1.01760726,3202.8,3201.9,5.18780489]
[1768799788591,0.00467792,3202.9,3201.9,5.18780489]
[1768799788791,1.01760607,3202.8,3201.9,5.18780489]
[1768799788992,1.5662092,3202.9,3201.9,5.18780489]
[1768799789193,1.01760577,3202.8,3201.9,5.18780489]
[1768799789401,1.01760577,3202.7,3201.9,5.18780489]
[1768799789600,1.5662092,3202.9,3201.9,5.18780489]
[1768799789803,1.01812392,3202.8,3201.9,5.18780489]
[1768799790099,1.01812392,3202.7,3201.9,5.18780489]
[1768799790301,0.00467792,3202.9,3202.0,3.38780489]
[1768799800703,0.00467792,3202.9,3202.1,5.28114014]
[1768799801009,0.00467792,3202.9,3202.2,1.801]
[1768799801308,0.00467792,3202.9,3202.3,1.801]
[1768799802210,1.01585237,3202.8,3202.3,5.28114014]
[1768799802509,0.00467792,3202.9,3202.3,5.28114014]
[1768799802706,1.01584964,3202.8,3202.3,5.28114014]
[1768799802901,0.00467792,3202.9,3202.3,5.28114014]
[1768799803107,1.01568911,3202.8,3202.3,5.28114014]
[1768799803309,0.00467792,3202.9,3202.3,5.28114014]
[1768799803610,1.01561844,3202.8,3202.3,5.28114014]
[1768799803809,0.00467792,3202.9,3202.3,5.28114014]
[1768799803998,0.00345666,3203.2,3202.4,3.48014014]
[1768799804410,0.00345666,3203.2,3202.5,1.801]
[1768799807109,0.00345666,3203.2,3202.4,3.48014014]
[1768799807410,0.00345666,3203.2,3202.5,1.801]
[1768799807803,1.56153128,3203.1,3202.3,0.0046853]
[1768799808006,1.56153128,3203.1,3202.4,1.8]
[1768799808203,0.00345666,3203.2,3202.4,1.8]
[1768799809507,0.00345666,3203.2,3202.3,0.0046853]
[1768799809710,0.00345666,3203.2,3202.5,1.8]
[1768799811816,0.00345666,3203.2,3202.3,0.0046853]
[1768799812114,0.00345666,3203.2,3202.4,1.8]
[1768799812615,0.00345666,3203.2,3202.4,5.11997625]
[1768799815427,2.78761208,3204.4,3202.5,3.31997625]
[1768799815729,3.34859518,3206.0,3202.3,0.0046853]
[1768799815730,1.56153128,3204.6,3203.1,3.23930106]
[1768799815930,0.98807006,3204.5,3203.2,1.8]
[1768799816125,0.98792827,3204.4,3203.2,4.923]
[1768799816433,1.56153128,3204.6,3203.2,4.923]
[1768799816627,0.00284889,3204.4,3203.2,4.92526283]
[1768799816828,1.56153128,3204.3,3203.2,0.00226283]
[1768799817029,3.34859518,3204.1,3203.2,0.00226283]
[1768799817224,3.34859518,3203.9,3202.8,0.701]
[1768799817622,1.56153128,3204.2,3202.9,3.36153128]
[1768799817827,0.98390307,3204.1,3202.9,1.8]
[1768799818027,0.00284889,3204.4,3203.2,1.56153128]
[1768799818234,0.98394596,3204.3,3203.2,1.56459731]
[1768799818433,0.98394596,3204.2,3203.2,1.56459731]
[1768799818631,0.98394596,3204.1,3203.2,1.56459731]
[1768799818836,0.00284889,3204.4,3203.2,1.56459731]
[1768799819029,0.98368042,3204.3,3203.2,1.56459731]
[1768799819236,0.98368042,3204.2,3203.2,1.56459731]
[1768799819433,0.00284889,3204.4,3203.2,1.56459731]
[1768799819627,0.98343935,3204.3,3203.2,1.56459731]
[1768799819824,3.34859518,3205.2,3203.8,1.56153128]
[1768799820132,3.34859518,3205.2,3204.1,1.56153128]
[1768799820728,3.34859518,3205.2,3204.3,0.0046853]
[1768799820937,3.3519798,3205.2,3204.3,0.0046853]
[1768799821134,0.00338462,3205.2,3204.3,0.0046853]
[1768799821430,0.15604,3206.0,3204.3,0.0046853]
[1768799821636,1.56153128,3205.4,3204.3,1.6756853]
[1768799821836,3.34859518,3205.7,3204.3,1.8046853]
[1768799822035,1.56153128,3205.5,3204.3,1.8046853]
[1768799822628,0.0034698,3205.5,3204.3,1.8046853]
[1768799822827,0.0034698,3205.5,3204.5,1.56153128]
[1768799824429,0.15604,3206.0,3204.7,1.56153128]
[1768799824629,0.15604,3206.0,3204.7,1.799]
[1768799824630,1.56153128,3205.3,3204.7,1.799]
[1768799825333,1.56153128,3205.6,3204.7,1.799]
[1768799825636,1.56546594,3205.6,3204.5,1.799]
[1768799826329,1.56153128,3205.1,3204.3,0.0046853]
[1768799826536,1.56153128,3204.8,3204.3,0.0046853]
[1768799827434,4.91012646,3204.8,3204.3,0.0046853]
[1768799827639,3.34859518,3204.7,3203.7,1.799]
[1768799828027,1.56153128,3204.1,3201.1,7.20946231]
[1768799828233,1.56153128,3203.0,3201.4,1.56153128]
[1768799828430,1.56153128,3203.0,3201.5,1.799]
[1768799828631,1.56153128,3203.0,3201.8,0.15925603]
[1768799829031,1.56375848,3203.0,3202.0,0.15925603]
[1768799829229,0.0022272,3203.0,3202.0,0.15925603]
[1768799829539,0.0022272,3203.0,3202.1,0.15925603]
[1768799829733,0.0022272,3203.0,3202.0,0.15925603]
[1768799830441,0.0022272,3203.0,3202.1,0.15925603]
[1768799830636,0.0022272,3203.0,3202.0,0.15925603]
[1768799830938,1.56153128,3202.6,3201.8,0.16218372]
[1768799831139,1.56153128,3202.6,3201.9,0.15925603]
[1768799831643,1.56153128,3202.6,3202.0,0.15925603]
[1768799831844,1.56153128,3202.6,3202.0,0.15841955]
[1768799833137,1.56153128,3202.6,3200.7,3.123]
[1768799833138,1.56153128,3202.2,3200.7,3.123]
[1768799833337,1.56153128,3202.2,3200.7,4.922]
[1768799833541,4.91012646,3202.2,3200.7,4.922]
[1768799833942,0.0046853,3201.8,3200.7,4.922]
[1768799834147,0.0046853,3201.8,3200.7,0.00307703]
[1768799837150,3.34859518,3202.9,3200.9,1.95854229]
[1768799837449,3.34859518,3202.9,3200.9,0.0046853]
[1768799837650,3.34859518,3202.9,3201.0,1.197]
[1768799837852,3.34859518,3202.9,3200.9,0.0046853]
[1768799840349,3.34859518,3202.9,3200.9,1.99809211]
[1768799841348,0.0022272,3203.0,3201.1,2.14966681]
[1768799841854,3.35082238,3203.0,3201.1,2.14966681]
[1768799842757,3.35082238,3203.0,3201.2,2.1621557]
[1768799844749,3.35082238,3203.0,3201.3,4.923]
[1768799845660,3.35082238,3203.0,3201.3,7.32903806]
[1768799845851,3.35082238,3203.0,3201.4,0.15625]
[1768799849965,3.35082238,3203.0,3201.6,0.15624]
[1768799852662,0.0022272,3203.0,3201.6,0.15624]
[1768799853267,3.59322327,3203.0,3201.6,0.15624]
[1768799862380,3.59322327,3203.0,3201.7,3.123]
[1768799865578,3.59322327,3203.0,3201.8,0.15623]
[1768799873784,3.59322327,3203.0,3201.9,3.123]
[1768799881897,3.59322327,3203.0,3202.0,4.922]
[1768799882888,3.59322327,3203.0,3201.8,0.15623]
[1768799883201,3.59322327,3203.0,3201.9,4.922]
[1768799885597,3.59322327,3203.0,3201.8,0.15623]
[1768799885799,3.59322327,3203.0,3202.0,1.799]
[1768799888094,3.59322327,3203.0,3202.1,4.923]
[1768799891104,3.59322327,3203.0,3201.8,0.15623]
[1768799891403,3.59322327,3203.0,3201.9,4.923]
[1768799892907,3.59322327,3203.0,3201.8,0.15623]
[1768799893209,3.59322327,3203.0,3202.0,1.8]
[1768799895506,3.59322327,3203.0,3201.8,0.15623]
[1768799895908,3.59322327,3203.0,3201.9,4.923]
[1768799901411,3.59322327,3203.0,3202.0,3.123]
[1768799902202,3.59322327,3203.0,3202.1,1.802]
[1768799902408,3.59322327,3203.0,3202.2,3.123]
[1768799902611,3.59322327,3203.0,3202.3,1.802]
[1768799903008,3.59322327,3203.0,3202.4,1.802]
[1768799903716,3.59322327,3203.0,3201.8,0.15623]
[1768799903920,3.59322327,3203.0,3201.9,4.925]
[1768799904516,3.59322327,3203.0,3201.8,0.15623]
[1768799904715,3.59322327,3203.0,3202.0,1.802]
[1768799905717,3.59322327,3203.0,3202.1,4.927]
[1768799907807,3.59322327,3203.0,3201.8,0.15623]
[1768799908010,3.59322327,3203.0,3201.9,4.928]
[1768799910924,3.59322327,3203.0,3202.0,1.56103855]
[1768799912319,0.0022272,3203.0,3202.5,1.56103855]
[1768799912517,0.0022272,3203.0,3202.6,1.807]
[1768799912823,3.49710965,3203.4,3202.6,1.807]
[1768799913524,3.49710965,3203.4,3202.7,0.0046853]
[1768799913824,1.105806,3204.3,3203.3,1.56103855]
[1768799914122,0.9741994,3204.2,3203.4,1.807]
[1768799914325,0.9741994,3204.1,3203.4,1.807]
[1768799914509,2.66684455,3204.4,3203.4,1.807]
[1768799914510,0.9741994,3204.0,3203.4,1.807]
[1768799914718,1.105806,3204.6,3203.4,1.807]
[1768799914921,2.08298223,3204.6,3203.4,1.80973436]
[1768799915728,0.97392211,3204.5,3203.5,1.56103855]
[1768799916027,0.97392211,3204.4,3203.5,1.56103855]
[1768799916320,0.00325412,3204.6,3203.4,1.80973436]
[1768799916526,5.0581482,3203.7,3202.5,3.123]
[1768799916721,3.49710965,3203.6,3202.8,1.807]
[1768799917724,3.49710965,3204.0,3202.8,3.37036465]
[1768799917927,3.49710965,3204.0,3203.0,1.56103855]
[1768799918528,3.49710965,3204.0,3202.8,1.56336465]
[1768799918719,3.49710965,3204.0,3202.9,1.807]
[1768799921824,3.49710965,3204.0,3202.8,0.0023261]
[1768799922025,3.49710965,3204.0,3203.0,1.56103855]
[1768799922833,3.49710965,3204.0,3202.9,1.806]
[1768799927636,3.49710965,3204.0,3203.0,1.56103855]
[1768799928439,3.49710965,3204.0,3202.9,1.806]
[1768799930747,3.49710965,3204.0,3202.8,1.56336465]
[1768799930951,3.49710965,3204.0,3202.9,1.806]
[1768799931949,3.49710965,3204.0,3203.0,1.56103855]
[1768799932946,3.55335478,3204.3,3202.9,1.806]
[1768799933150,3.55335478,3204.3,3203.1,1.56103855]
[1768799933747,3.55335478,3204.3,3202.8,0.0023261]
[1768799933950,3.55335478,3204.2,3202.9,3.36703855]
[1768799936453,3.55335478,3204.2,3202.9,1.56103855]
[1768799936650,3.55335478,3204.2,3203.0,1.806]
[1768799937342,3.55335478,3204.2,3203.4,1.56103855]
[1768799941059,3.55335478,3204.2,3203.1,1.56103855]
[1768799941259,3.55335478,3204.2,3203.0,3.36703855]
[1768799942656,3.55335478,3204.2,3203.1,1.56103855]
[1768799945256,3.55335478,3204.2,3203.0,1.806]
[1768799945455,3.55335478,3204.2,3203.0,3.36703855]
[1768799947864,3.55335478,3204.2,3202.8,0.0023261]
[1768799948065,3.55335478,3204.2,3203.0,1.56103855]
[1768799949164,4.52638908,3204.1,3203.0,1.56103855]
[1768799949362,3.55335478,3204.1,3203.0,1.56103855]
[1768799949762,3.55335478,3202.6,3199.8,3.65065636]
[1768799950066,1.56103855,3201.6,3200.1,1.56103855]
[1768799950368,1.56103855,3201.6,3200.2,1.56103855]
[1768799950760,5.11744034,3201.6,3200.2,1.56457828]
[1768799952368,3.55640179,3201.6,3200.2,1.56457828]
[1768799952964,3.55640179,3201.6,3200.2,0.00353973]
[1768799953265,3.55640179,3201.6,3200.4,1.56103855]
[1768799953468,3.55640179,3201.6,3200.4,3.36603855]
[1768799955167,3.55640179,3201.6,3200.2,0.00353973]
[1768799955463,3.55640179,3201.6,3200.6,1.56103855]
[1768799955664,3.55640179,3201.6,3200.5,1.805]
[1768799956668,0.00304701,3201.6,3200.5,1.805]
[1768799957166,0.00304701,3201.6,3200.4,1.805]
[1768799957664,3.55335478,3201.4,3200.2,0.00353973]
[1768799958064,5.11439333,3201.3,3200.2,1.53353973]
[1768799958464,3.55335478,3201.2,3200.2,0.00353973]
[1768799961370,3.55335478,3201.0,3200.2,0.00353973]
[1768799963378,3.55335478,3201.0,3199.2,3.66907252]
[1768799963572,3.55335478,3201.0,3199.8,1.56103855]
[1768799964364,3.55335478,3201.0,3199.8,1.56504405]
[1768799965165,1.56103855,3201.1,3199.8,1.56504405]
[1768799965365,1.56103855,3201.3,3199.8,1.56504405]
[1768799965560,5.0734994,3201.3,3199.8,1.56504405]
[1768799965764,5.0734994,3201.3,3199.8,0.0040055]
[1768799965966,3.51246085,3201.2,3199.8,1.56504405]
[1768799967670,3.51246085,3201.2,3200.0,1.56103855]
[1768799968274,3.51246085,3201.2,3200.1,1.56103855]
[1768799968473,3.51246085,3201.2,3200.0,1.56103855]
[1768799968677,3.51246085,3201.2,3199.8,0.0040055]
[1768799968880,3.51246085,3201.2,3200.0,1.56103855]
[1768799969482,3.51246085,3201.2,3199.8,0.0040055]
[1768799969977,3.51246085,3201.2,3199.9,1.56103855]
[1768799970880,3.51246085,3201.2,3199.8,0.0040055]
[1768799971474,3.51246085,3201.2,3199.8,3.51672802]
[1768799972773,3.51246085,3201.2,3199.8,0.0040055]
[1768799972975,3.51246085,3201.2,3199.9,1.806]
[1768799975983,3.51246085,3201.2,3199.8,0.0040055]
[1768799976283,3.51246085,3201.2,3199.9,1.806]
[1768799978584,0.15928701,3201.6,3199.9,1.806]
[1768799978776,3.69052626,3201.6,3199.9,1.806]
[1768799979284,3.53123925,3201.4,3199.9,1.806]
[1768799979492,4.49909926,3201.3,3199.9,1.806]
[1768799979683,0.96786001,3201.2,3199.9,1.806]
[1768799985078,0.96786001,3201.2,3199.9,4.931]
[1768799987892,1.10885301,3201.6,3200.0,3.44342472]
[1768799988084,2.08081284,3201.6,3200.0,3.44342472]
[1768799990183,0.97195983,3201.5,3200.0,3.44342472]
[1768799990383,0.97195983,3201.4,3200.0,3.44342472]
[1768799990582,0.97195983,3201.3,3200.0,3.44342472]
[1768799990782,0.97195983,3201.2,3200.0,3.44342472]
[1768799990982,1.10885301,3201.6,3200.0,3.44342472]